bitfinex/quotes_BTCUSD_20240828
["timestamp","ask_amount","ask_price","bid_price","bid_amount"]
[1724823187411,0.1947,59572.0,59571.0,0.505599]
[1724823189304,0.1947,59572.0,59571.0,0.510599]
[1724823189939,0.195518,59572.0,59571.0,0.60695391]
[1724823190957,0.195518,59572.0,59571.0,0.510599]
[1724823193399,0.195518,59572.0,59571.0,0.62780808]
[1724823197128,0.195518,59572.0,59571.0,0.96354108]
[1724823197345,0.000818,59572.0,59571.0,0.96354108]
[1724823198706,0.00532952,59572.0,59571.0,0.96354108]
[1724823198905,0.000818,59572.0,59571.0,1.11153929]
[1724823199489,0.00532958,59572.0,59571.0,1.11153929]
[1724823206563,0.00032958,59572.0,59571.0,1.11153929]
[1724823206763,0.05043647,59574.0,59571.0,1.11153929]
[1724823206973,0.05043647,59574.0,59573.0,0.503583]
[1724823207174,0.25065447,59575.0,59574.0,0.503574]
[1724823207374,0.25065447,59575.0,59574.0,0.62078308]
[1724823209906,0.25065447,59575.0,59574.0,0.62178308]
[1724823210340,0.25063362,59575.0,59574.0,0.62078308]
[1724823210776,0.25063362,59575.0,59574.0,0.62378308]
[1724823211019,0.25063362,59575.0,59574.0,0.62278308]
[1724823211309,0.05123362,59575.0,59574.0,1.93304287]
[1724823211510,0.05123362,59575.0,59574.0,1.93504287]
[1724823211511,0.000818,59575.0,59574.0,1.93504287]
[1724823212173,0.000818,59575.0,59574.0,1.93304287]
[1724823212424,0.000818,59575.0,59574.0,1.93604287]
[1724823212876,0.000818,59575.0,59574.0,1.93304287]
[1724823213322,0.000818,59575.0,59574.0,1.94404287]
[1724823213542,0.000818,59575.0,59574.0,1.94204287]
[1724823213991,0.001818,59575.0,59574.0,1.95204287]
[1724823214667,0.000818,59575.0,59574.0,1.94204287]
[1724823215136,0.001818,59575.0,59574.0,1.94204287]
[1724823215594,0.001818,59575.0,59574.0,1.95404287]
[1724823218243,0.00161596,59575.0,59574.0,1.95404287]
[1724823221791,0.00161596,59575.0,59574.0,1.75754287]
[1724823222072,0.19301596,59575.0,59574.0,0.023]
[1724823222310,0.49021428,59575.0,59574.0,0.023]
[1724823222549,0.61180615,59575.0,59574.0,0.023]
[1724823223068,0.71180615,59575.0,59574.0,0.023]
[1724823223321,0.86789346,59575.0,59574.0,0.011]
[1724823223556,0.50749372,59572.0,59571.0,0.0008998]
[1724823223780,0.65100112,59572.0,59571.0,0.0008998]
[1724823224029,0.75533869,59572.0,59571.0,0.0008998]
[1724823224258,1.25893869,59572.0,59571.0,0.0008998]
[1724823224485,1.25893869,59572.0,59551.0,0.335841]
[1724823224486,0.2957,59564.0,59553.0,0.167916]
[1724823224712,0.4952,59562.0,59554.0,0.167913]
[1724823224942,0.7993,59561.0,59554.0,0.167912]
[1724823225408,0.00428897,59560.0,59554.0,0.167912]
[1724823225629,0.5036,59559.0,59555.0,0.167911]
[1724823226079,0.00428897,59558.0,59555.0,0.167911]
[1724823226313,0.5036,59557.0,59555.0,0.167911]
[1724823226779,0.4842,59556.0,59549.0,0.335853]
[1724823227004,0.5036,59555.0,59549.0,0.11720908]
[1724823227493,0.5036,59555.0,59542.0,1.133897]
[1724823227494,0.4842,59552.0,59542.0,0.167948]
[1724823227769,0.299,59549.0,59541.0,0.1688498]
[1724823228291,0.50788897,59548.0,59546.0,0.11720908]
[1724823228517,0.50788897,59548.0,59546.0,0.28514408]
[1724823228731,0.50788897,59548.0,59546.0,0.11720908]
[1724823229142,0.50788897,59548.0,59547.0,0.167934]
[1724823229350,0.50788897,59548.0,59547.0,0.503803]
[1724823229553,0.50788897,59548.0,59547.0,0.839672]
[1724823229756,0.50788897,59548.0,59547.0,0.503803]
[1724823230371,0.50888897,59548.0,59547.0,0.503803]
[1724823230622,0.5036,59548.0,59547.0,0.503803]
[1724823230831,0.50788897,59548.0,59547.0,0.503803]
[1724823231039,0.50888897,59548.0,59547.0,0.503803]
[1724823231244,0.50788897,59548.0,59547.0,0.503803]
[1724823231451,0.50788897,59548.0,59547.0,0.510803]
[1724823231855,0.50788897,59548.0,59547.0,0.503803]
[1724823232440,0.50888897,59548.0,59547.0,0.503803]
[1724823232782,0.51088897,59548.0,59547.0,0.503803]
[1724823232997,0.50988897,59548.0,59547.0,0.503803]
[1724823233195,0.50788897,59548.0,59547.0,0.503803]
[1724823233640,0.50788897,59548.0,59547.0,0.839672]
[1724823233832,0.50788897,59548.0,59547.0,0.98944201]
[1724823234261,0.50788897,59548.0,59547.0,1.83311101]
[1724823234648,0.5036,59548.0,59547.0,1.83311101]
[1724823235206,0.5036,59548.0,59547.0,1.84011101]
[1724823235634,0.5036,59548.0,59547.0,1.83311101]
[1724823235951,0.5036,59548.0,59547.0,1.84711101]
[1724823237319,0.5036,59548.0,59547.0,1.83311101]
[1724823237566,0.5046,59548.0,59547.0,1.85111101]
[1724823238146,0.5046,59548.0,59547.0,1.85201081]
[1724823238364,0.5036,59548.0,59547.0,1.84801081]
[1724823238770,0.5046,59548.0,59547.0,1.85201081]
[1724823239169,0.5046,59548.0,59547.0,1.7022408]
[1724823239381,0.5046,59548.0,59547.0,1.99530825]
[1724823239628,0.50881589,59548.0,59547.0,1.99530825]
[1724823239872,0.5046,59548.0,59547.0,1.5044408]
[1724823240098,0.5046,59548.0,59547.0,0.8585718]
[1724823240330,0.50883738,59548.0,59547.0,0.8585718]
[1724823240560,0.50883738,59548.0,59547.0,0.1868338]
[1724823240790,0.50883738,59548.0,59547.0,0.5227028]
[1724823241001,0.50883738,59548.0,59547.0,0.5087028]
[1724823241350,0.50883738,59548.0,59547.0,0.5227028]
[1724823243632,0.50783738,59548.0,59547.0,0.5047028]
[1724823243854,0.50783738,59548.0,59547.0,0.5187028]
[1724823244071,0.50883738,59548.0,59547.0,0.5227028]
[1724823244272,0.50883738,59548.0,59547.0,0.5187028]
[1724823244549,0.50883738,59548.0,59547.0,0.5227028]
[1724823244550,0.50983738,59548.0,59547.0,0.5227028]
[1724823245531,0.50983738,59548.0,59547.0,0.8585718]
[1724823247772,0.50983738,59548.0,59547.0,1.55139244]
[1724823248152,0.5056,59548.0,59547.0,1.57439244]
[1724823248557,0.5056,59548.0,59547.0,1.38599244]
[1724823249075,0.5056,59548.0,59547.0,1.2174408]
[1724823249284,0.50910152,59548.0,59547.0,1.2174408]
[1724823251263,0.50910152,59548.0,59547.0,1.6815408]
[1724823253016,0.50910152,59548.0,59547.0,1.97460825]
[1724823255007,0.50910152,59548.0,59547.0,1.6815408]
[1724823255217,0.50910152,59548.0,59547.0,2.14315989]
[1724823255585,0.5056,59548.0,59547.0,2.14315989]
[1724823256625,0.000818,59572.0,59565.0,0.167883]
[1724823256626,0.1873,59566.0,59565.0,0.167883]
[1724823256838,0.19080871,59566.0,59565.0,0.167883]
[1724823257073,0.19080871,59566.0,59565.0,0.1846713]
[1724823257294,0.19080871,59566.0,59565.0,0.167883]
[1724823257509,0.19080871,59566.0,59565.0,0.50365]
[1724823257715,0.19580871,59566.0,59565.0,0.50365]
[1724823257935,0.1923,59566.0,59565.0,0.50365]
[1724823258140,0.19580871,59566.0,59565.0,0.50365]
[1724823258368,0.19580871,59566.0,59565.0,0.554015]
[1724823259236,0.19080871,59566.0,59565.0,0.554015]
[1724823259557,0.1873,59566.0,59565.0,0.556015]
[1724823259763,0.1873,59566.0,59565.0,0.50565]
[1724823259981,0.1873,59566.0,59565.0,0.50765]
[1724823262485,0.1977,59570.0,59567.0,0.167875]
[1724823262636,0.1977,59570.0,59568.0,0.167874]
[1724823263648,0.1977,59570.0,59567.0,0.09671351]
[1724823263853,0.1977,59570.0,59567.0,0.167877]
[1724823264489,0.2007,59570.0,59567.0,0.167877]
[1724823265302,0.1977,59570.0,59567.0,0.167877]
[1724823265710,0.2007,59570.0,59567.0,0.167877]
[1724823266772,0.02630247,59569.0,59567.0,0.167877]
[1724823267583,0.07651228,59569.0,59567.0,0.167877]
[1724823267846,0.05020981,59569.0,59567.0,0.167877]
[1724823268291,0.05220981,59569.0,59567.0,0.167877]
[1724823268745,0.002,59569.0,59568.0,0.503625]
[1724823269425,0.002,59569.0,59568.0,0.167875]
[1724823270519,0.000818,59572.0,59570.0,0.167867]
[1724823270727,0.000818,59572.0,59571.0,0.165866]
[1724823270930,0.000818,59572.0,59571.0,0.19376273]
[1724823271814,0.0183953,59572.0,59571.0,0.19376273]
[1724823272144,0.0213953,59572.0,59571.0,0.19376273]
[1724823273471,0.0213953,59572.0,59571.0,0.86522873]
[1724823273676,0.02538939,59572.0,59571.0,0.86522873]
[1724823274123,0.02538939,59572.0,59571.0,1.13892873]
[1724823274517,0.0213953,59572.0,59571.0,1.13892873]
[1724823274716,0.0183953,59572.0,59571.0,1.13892873]
[1724823274915,0.0183953,59572.0,59571.0,1.14192873]
[1724823275457,0.0183953,59572.0,59571.0,1.13892873]
[1724823275759,0.0183953,59572.0,59571.0,1.14292873]
[1724823275966,0.0183953,59572.0,59571.0,1.14692873]
[1724823276266,0.0183953,59572.0,59571.0,1.14292873]
[1724823276600,0.0183953,59572.0,59571.0,1.14792873]
[1724823279031,0.0183953,59572.0,59571.0,1.50666173]
[1724823280530,0.0183953,59572.0,59571.0,1.50166173]
[1724823280693,0.0183953,59572.0,59571.0,1.50766173]
[1724823280915,0.0183953,59572.0,59571.0,1.50366173]
[1724823281499,0.0183953,59572.0,59571.0,1.50866173]
[1724823282127,0.0183953,59572.0,59571.0,1.50366173]
[1724823282558,0.0193953,59572.0,59571.0,1.50966173]
[1724823282955,0.0193953,59572.0,59571.0,1.50366173]
[1724823283188,0.0193953,59572.0,59571.0,1.51266173]
[1724823283720,0.0193953,59572.0,59571.0,1.50366173]
[1724823283922,0.0193953,59572.0,59571.0,1.51366173]
[1724823284124,0.0183953,59572.0,59571.0,1.50766173]
[1724823284563,0.0193953,59572.0,59571.0,1.51766173]
[1724823286175,0.0193953,59572.0,59571.0,1.63477829]
[1724823286383,0.0143953,59572.0,59571.0,1.62477829]
[1724823286554,0.0143953,59572.0,59571.0,1.63677829]
[1724823287241,0.0133953,59572.0,59571.0,1.82407829]
[1724823287693,0.0143953,59572.0,59571.0,1.83507829]
[1724823290710,0.0143953,59572.0,59571.0,2.17081129]
[1724823291777,0.000818,59580.0,59579.0,0.167844]
[1724823292014,0.000818,59580.0,59579.0,1.50017096]
[1724823292259,0.000818,59580.0,59579.0,1.83585896]
[1724823293483,0.000818,59580.0,59579.0,1.84985896]
[1724823293936,0.000818,59580.0,59579.0,1.86285896]
[1724823295188,0.000818,59580.0,59579.0,1.84985896]
[1724823295352,0.000818,59580.0,59579.0,1.83927637]
[1724823295557,0.000818,59580.0,59579.0,1.85127637]
[1724823296170,0.000818,59580.0,59579.0,1.83727637]
[1724823296574,0.000818,59580.0,59579.0,1.85127637]
[1724823296918,0.00061596,59580.0,59579.0,1.85127637]
[1724823297761,0.00061596,59580.0,59579.0,1.82527637]
[1724823297980,0.00061596,59580.0,59579.0,1.83927637]
[1724823298188,0.00061596,59580.0,59579.0,1.85327637]
[1724823298322,0.00061596,59580.0,59579.0,1.83927637]
[1724823298525,0.00061596,59580.0,59579.0,1.85327637]
[1724823299163,0.00061596,59580.0,59579.0,1.83927637]
[1724823299592,0.00061596,59580.0,59579.0,2.18896437]
[1724823299820,0.000818,59591.0,59590.0,0.839065]
[1724823301136,0.000818,59591.0,59590.0,0.843065]
[1724823301934,0.000818,59591.0,59590.0,0.845065]
[1724823302499,0.0047989,59591.0,59590.0,0.843065]
[1724823302702,0.000818,59591.0,59590.0,0.851065]
[1724823302819,0.0047989,59591.0,59590.0,0.99119262]
[1724823303020,0.000818,59591.0,59590.0,0.98719262]
[1724823303270,0.0047989,59591.0,59590.0,0.99619262]
[1724823303462,0.000818,59591.0,59590.0,0.99619262]
[1724823303680,0.0047989,59591.0,59590.0,0.99619262]
[1724823303856,0.000818,59591.0,59590.0,0.99619262]
[1724823304043,0.0047989,59591.0,59590.0,0.99619262]
[1724823304271,0.000818,59591.0,59590.0,0.856065]
[1724823304442,0.1922989,59591.0,59590.0,0.856065]
[1724823304644,0.1922989,59591.0,59590.0,0.017]
[1724823304645,0.486718,59591.0,59590.0,0.017]
[1724823304992,0.4906989,59591.0,59590.0,0.017]
[1724823305404,0.53169262,59591.0,59590.0,0.009]
[1724823305614,0.65798662,59591.0,59590.0,0.009]
[1724823305823,0.65798662,59591.0,59590.0,0.017]
[1724823306021,0.65798662,59591.0,59590.0,0.009]
[1724823306240,0.65798662,59591.0,59578.0,0.167846]
[1724823306241,0.4965,59590.0,59578.0,0.167846]
[1724823306459,0.1951,59584.0,59579.0,0.28495956]
[1724823307069,0.00377432,59583.0,59579.0,0.28495956]
[1724823307514,0.00377432,59583.0,59579.0,0.11711656]
[1724823307756,0.00377432,59583.0,59582.0,0.11711656]
[1724823308210,0.00377432,59583.0,59579.0,0.339686]
[1724823308417,0.00377432,59583.0,59582.0,0.167835]
[1724823308788,0.1951,59584.0,59582.0,0.167835]
[1724823309335,0.1951,59584.0,59582.0,0.171835]
[1724823309547,0.4794,59588.0,59586.0,0.167822]
[1724823310237,0.185718,59591.0,59587.0,0.335643]
[1724823310488,0.185718,59591.0,59583.0,0.62845956]
[1724823310489,0.185718,59591.0,59584.0,0.33566]
[1724823310715,0.185718,59591.0,59587.0,0.167819]
[1724823310943,0.185718,59591.0,59585.0,0.335653]
[1724823311160,0.185718,59591.0,59588.0,0.167818]
[1724823311889,0.185718,59591.0,59583.0,0.335661]
[1724823311890,0.185718,59591.0,59590.0,0.167813]
[1724823312129,0.005818,59591.0,59590.0,0.503439]
[1724823312599,0.000818,59591.0,59590.0,0.503439]
[1724823312871,0.007818,59591.0,59590.0,0.503439]
[1724823313103,0.002818,59591.0,59590.0,0.503439]
[1724823313318,0.000818,59591.0,59590.0,0.503439]
[1724823313538,0.000818,59591.0,59590.0,0.6202158]
[1724823313992,0.000818,59591.0,59590.0,0.503439]
[1724823315090,0.000818,59591.0,59590.0,0.509439]
[1724823315366,0.000818,59591.0,59590.0,0.507439]
[1724823315756,0.000818,59591.0,59590.0,0.510439]
[1724823316196,0.000818,59591.0,59590.0,0.507439]
[1724823316412,0.000818,59591.0,59590.0,0.506439]
[1724823316631,0.000818,59591.0,59590.0,0.510439]
[1724823317084,0.000818,59591.0,59590.0,0.842065]
[1724823317313,0.000818,59591.0,59590.0,0.839065]
[1724823317534,0.000818,59591.0,59590.0,0.843065]
[1724823318625,0.000818,59591.0,59590.0,0.846065]
[1724823319034,0.000818,59591.0,59590.0,0.843065]
[1724823319311,0.000818,59591.0,59590.0,0.87439252]
[1724823319482,0.000818,59591.0,59590.0,0.86739252]
[1724823319918,0.182036,59596.0,59594.0,0.167801]
[1724823320356,0.00381997,59595.0,59594.0,0.167801]
[1724823320563,0.00381997,59595.0,59594.0,0.25453805]
[1724823320992,0.00381997,59595.0,59594.0,0.92574605]
[1724823321429,0.0175773,59600.0,59599.0,0.167788]
[1724823321888,0.02141594,59600.0,59599.0,0.167788]
[1724823322342,0.02141594,59600.0,59599.0,0.165788]
[1724823322560,0.02141594,59600.0,59599.0,0.215925]
[1724823323226,0.02341594,59600.0,59599.0,0.551501]
[1724823323663,0.00383864,59600.0,59599.0,0.551501]
[1724823323907,0.00383864,59600.0,59599.0,0.553501]
[1724823324380,0.00383864,59600.0,59599.0,0.551501]
[1724823324601,0.00383864,59600.0,59599.0,0.218925]
[1724823324844,0.00383864,59600.0,59599.0,0.219925]
[1724823325077,0.00383864,59600.0,59599.0,0.218925]
[1724823325569,0.00383864,59600.0,59599.0,0.170788]
[1724823325807,0.00465664,59600.0,59599.0,1.506364]
[1724823326236,0.000818,59600.0,59599.0,1.506364]
[1724823326719,0.000818,59600.0,59599.0,1.501364]
[1724823327060,0.000818,59600.0,59599.0,1.165788]
[1724823327170,0.000818,59600.0,59599.0,1.170788]
[1724823328121,0.000818,59600.0,59599.0,1.174788]
[1724823328804,0.000818,59600.0,59599.0,1.170788]
[1724823329037,0.000818,59600.0,59599.0,1.165788]
[1724823329265,0.000818,59600.0,59599.0,1.178788]
[1724823331291,0.000818,59600.0,59599.0,1.34733964]
[1724823331496,0.000818,59600.0,59599.0,1.178788]
[1724823331897,0.000818,59600.0,59599.0,1.514364]
[1724823332352,0.000818,59600.0,59599.0,1.178788]
[1724823338133,0.000818,59600.0,59599.0,1.013]
[1724823338337,0.181218,59600.0,59599.0,1.013]
[1724823338816,0.18743474,59600.0,59599.0,1.013]
[1724823338983,0.1872328,59600.0,59599.0,1.0]
[1724823339181,0.4853328,59600.0,59599.0,1.006]
[1724823339508,0.4853328,59600.0,59599.0,1.013]
[1724823340085,0.4853328,59600.0,59599.0,1.0]
[1724823340281,0.4853328,59600.0,59599.0,1.2]
[1724823340282,0.4863328,59600.0,59599.0,1.2]
[1724823341598,0.4853328,59600.0,59599.0,1.2]
[1724823342027,0.4853328,59600.0,59599.0,1.206]
[1724823342212,0.4853328,59600.0,59599.0,1.207]
[1724823342597,0.1872328,59600.0,59599.0,1.207]
[1724823342804,0.18101606,59600.0,59599.0,1.2]
[1724823342981,0.18703186,59600.0,59599.0,1.2]
[1724823343613,0.18703186,59600.0,59599.0,1.201]
[1724823345527,0.18703186,59600.0,59599.0,1.2]
[1724823345951,0.18703186,59600.0,59599.0,1.201]
[1724823346759,0.18703186,59600.0,59599.0,1.2]
[1724823346967,0.00663186,59600.0,59599.0,1.367788]
[1724823347183,0.00663186,59600.0,59599.0,1.369788]
[1724823347385,0.00061606,59600.0,59599.0,1.202]
[1724823348000,0.00061606,59600.0,59599.0,1.369788]
[1724823348161,0.00061606,59600.0,59599.0,1.2028998]
[1724823348750,0.00061606,59600.0,59599.0,1.2038998]
[1724823348961,0.00061606,59600.0,59599.0,1.3716878]
[1724823349166,0.00061606,59600.0,59599.0,1.54023944]
[1724823351531,0.00061606,59600.0,59599.0,3.06946744]
[1724823352543,0.00061606,59600.0,59599.0,3.06746744]
[1724823352741,0.00061606,59600.0,59599.0,3.07546744]
[1724823353042,0.00061606,59600.0,59599.0,3.08046744]
[1724823353253,0.00061606,59600.0,59599.0,3.06646744]
[1724823353594,0.00061606,59600.0,59599.0,3.09446744]
[1724823353824,0.00061606,59600.0,59599.0,3.11865489]
[1724823359019,0.00061606,59600.0,59599.0,3.09446744]
[1724823359244,0.00061606,59600.0,59599.0,2.9259158]
[1724823359678,0.00061606,59600.0,59599.0,2.0678398]
[1724823359912,0.00061606,59600.0,59599.0,1.3966878]
[1724823360183,0.18971606,59600.0,59599.0,1.7322638]
[1724823360635,0.19534958,59600.0,59599.0,1.7322638]
[1724823361127,0.19534958,59600.0,59599.0,1.7182638]
[1724823361369,0.00624958,59600.0,59599.0,1.7322638]
[1724823361616,0.00624958,59600.0,59599.0,2.3447398]
[1724823361851,0.00061606,59600.0,59599.0,2.3307398]
[1724823362072,0.00061606,59600.0,59599.0,2.0051638]
[1724823362296,0.00061606,59600.0,59599.0,1.993049]
[1724823362524,0.00061606,59600.0,59599.0,1.988049]
[1724823362735,0.00061606,59600.0,59599.0,1.992049]
[1724823362944,0.00061606,59600.0,59599.0,1.993049]
[1724823363155,0.00061606,59600.0,59599.0,2.50117664]
[1724823363783,0.00061606,59600.0,59599.0,1.202785]
[1724823364234,0.00628013,59600.0,59599.0,1.202785]
[1724823365301,0.00628013,59600.0,59599.0,1.198785]
[1724823365505,0.00628013,59600.0,59599.0,1.205785]
[1724823365724,0.48118013,59600.0,59599.0,1.200785]
[1724823365934,0.6082161,59600.0,59599.0,1.201785]
[1724823366140,0.63437785,59600.0,59599.0,1.201785]
[1724823366345,0.50846846,59600.0,59599.0,1.201785]
[1724823366546,0.50846846,59600.0,59599.0,1.193785]
[1724823366973,0.60746846,59600.0,59599.0,1.193785]
[1724823367177,0.62504576,59600.0,59599.0,1.193785]
[1724823367384,0.62604576,59600.0,59599.0,1.193785]
[1724823370168,0.75186996,59600.0,59599.0,1.193785]
[1724823370385,0.75186958,59600.0,59599.0,1.193785]
[1724823370562,0.75185279,59600.0,59599.0,1.193785]
[1724823371700,0.62604576,59600.0,59599.0,1.193785]
[1724823371913,0.75183079,59600.0,59599.0,1.193785]
[1724823372056,0.62604576,59600.0,59599.0,1.193785]
[1724823372265,0.75183079,59600.0,59599.0,1.193785]
[1724823372491,0.62604576,59600.0,59599.0,1.193785]
[1724823374908,1.12940576,59600.0,59599.0,1.193785]
[1724823377103,1.15349175,59600.0,59599.0,1.193785]
[1724823377832,1.13140576,59600.0,59599.0,1.194785]
[1724823378240,1.13040576,59600.0,59599.0,1.194785]
[1724823378448,1.13240576,59600.0,59599.0,1.194785]
[1724823378652,1.13240576,59600.0,59599.0,1.195785]
[1724823378653,1.13440576,59600.0,59599.0,1.195785]
[1724823378870,1.13040576,59600.0,59599.0,1.194785]
[1724823379065,1.13440576,59600.0,59599.0,1.195785]
[1724823379293,1.13040576,59600.0,59599.0,1.194785]
[1724823379704,1.13440576,59600.0,59599.0,1.195785]
[1724823380296,1.13240576,59600.0,59599.0,1.194785]
[1724823380677,1.26005801,59600.0,59599.0,1.195785]
[1724823382958,1.23491127,59600.0,59599.0,1.195785]
[1724823383118,1.13440576,59600.0,59599.0,1.195785]
[1724823383500,1.23490767,59600.0,59599.0,1.195785]
[1724823383908,0.70775404,59600.0,59599.0,1.194785]
[1724823384104,0.70775404,59600.0,59599.0,1.195785]
[1724823384369,0.63321743,59600.0,59599.0,1.195785]
[1724823384725,0.68146571,59600.0,59599.0,1.194785]
[1724823384926,0.68146571,59600.0,59599.0,1.193785]
[1724823384927,0.62721743,59600.0,59599.0,1.193785]
[1724823385139,0.62921743,59600.0,59599.0,1.194785]
[1724823385335,0.62921743,59600.0,59599.0,1.195785]
[1724823385336,0.63321743,59600.0,59599.0,1.195785]
[1724823385567,0.62721743,59600.0,59599.0,1.193785]
[1724823385961,0.63321743,59600.0,59599.0,1.195785]
[1724823386399,0.62743643,59600.0,59599.0,1.195785]
[1724823386596,0.6323549,59600.0,59599.0,1.195785]
[1724823387349,0.6303549,59600.0,59599.0,1.194785]
[1724823387777,0.6323549,59600.0,59599.0,1.3441135]
[1724823388151,0.6283549,59600.0,59599.0,1.3431135]
[1724823388357,0.6283549,59600.0,59599.0,1.3441135]
[1724823388358,0.6323549,59600.0,59599.0,1.3441135]
[1724823389411,0.6323549,59600.0,59599.0,1.195785]
[1724823389734,0.6283549,59600.0,59599.0,1.194785]
[1724823389938,0.5283549,59600.0,59599.0,1.194785]
[1724823390142,0.5323549,59600.0,59599.0,1.195785]
[1724823390586,0.5303549,59600.0,59599.0,1.194785]
[1724823390817,0.55864433,59600.0,59599.0,1.195785]
[1724823390946,0.55864433,59600.0,59599.0,1.32263243]
[1724823391152,0.5323549,59600.0,59599.0,1.673785]
[1724823391354,0.5263549,59600.0,59599.0,1.671785]
[1724823391560,0.5283549,59600.0,59599.0,1.671785]
[1724823391842,0.5323549,59600.0,59599.0,1.672785]
[1724823392061,0.5323549,59600.0,59599.0,1.671785]
[1724823392237,0.5303549,59600.0,59599.0,1.671785]
[1724823392376,0.5363549,59600.0,59599.0,1.671785]
[1724823392581,0.5283549,59600.0,59599.0,1.84033664]
[1724823392811,0.5283549,59600.0,59599.0,2.00812464]
[1724823393012,0.5313549,59600.0,59599.0,2.00812464]
[1724823393689,0.5293549,59600.0,59599.0,1.84033664]
[1724823393822,0.5293549,59600.0,59599.0,1.671785]
[1724823394027,0.5321729,59600.0,59599.0,1.671785]
[1724823394463,0.55646092,59600.0,59599.0,1.671785]
[1724823394877,0.55346092,59600.0,59599.0,1.672785]
[1724823395249,0.5301729,59600.0,59599.0,1.672785]
[1724823395449,0.5271729,59600.0,59599.0,1.672785]
[1724823397115,0.5271729,59600.0,59599.0,1.840573]
[1724823397497,0.5217553,59600.0,59599.0,1.840573]
[1724823397692,0.5217553,59600.0,59599.0,2.176149]
[1724823398591,0.5217553,59600.0,59599.0,2.34470064]
[1724823398991,0.504178,59600.0,59599.0,2.34470064]
[1724823399197,0.504178,59600.0,59599.0,2.176149]
[1724823400539,0.504178,59600.0,59599.0,1.840573]
[1724823400773,0.53046545,59600.0,59599.0,2.176149]
[1724823400978,0.53572116,59600.0,59599.0,2.176149]
[1724823401229,0.50943371,59600.0,59599.0,2.176149]
[1724823401601,0.50943371,59600.0,59599.0,2.68027664]
[1724823401804,0.504178,59600.0,59599.0,2.34470064]
[1724823403217,0.504178,59600.0,59599.0,2.176149]
[1724823404671,0.50943371,59600.0,59599.0,2.176149]
[1724823405061,0.50943371,59600.0,59599.0,2.511725]
[1724823405483,0.504178,59600.0,59599.0,2.511725]
[1724823409604,0.504178,59600.0,59599.0,2.176149]
[1724823411847,0.504178,59600.0,59599.0,2.68027664]
[1724823412498,0.504178,59600.0,59599.0,2.34470064]
[1724823413186,0.504178,59600.0,59599.0,2.176149]
[1724823418839,0.504178,59600.0,59599.0,2.847301]
[1724823419037,0.504178,59600.0,59599.0,2.870301]
[1724823419881,0.504178,59600.0,59599.0,2.29223175]
[1724823420079,0.504178,59600.0,59599.0,2.29723175]
[1724823420281,0.504178,59600.0,59599.0,2.11503175]
[1724823420750,0.50946812,59600.0,59599.0,2.11503175]
[1724823420930,0.50946812,59600.0,59599.0,1.992949]
[1724823421176,0.50946812,59600.0,59599.0,2.11303175]
[1724823421408,0.50946812,59600.0,59599.0,2.11703175]
[1724823421847,0.50946812,59600.0,59599.0,1.995949]
[1724823422049,0.53575568,59600.0,59599.0,1.997949]
[1724823422691,0.53575568,59600.0,59599.0,1.994949]
[1724823422900,0.53575568,59600.0,59599.0,2.11503175]
[1724823423824,0.53575568,59600.0,59599.0,1.494585]
[1724823424084,0.53575568,59600.0,59599.0,1.198785]
[1724823424917,0.53575568,59600.0,59599.0,1.366573]
[1724823425320,0.53575568,59600.0,59599.0,1.196785]
[1724823425740,0.53575568,59600.0,59599.0,1.197785]
[1724823426190,0.53575568,59600.0,59599.0,1.362573]
[1724823426641,0.53575568,59600.0,59599.0,1.364573]
[1724823427068,0.58606639,59600.0,59599.0,1.362573]
[1724823427436,0.58606639,59600.0,59599.0,1.364573]
[1724823427639,0.53575568,59600.0,59599.0,1.363573]
[1724823428087,0.53575568,59600.0,59599.0,1.364573]
[1724823428219,0.53575568,59600.0,59599.0,1.362573]
[1724823428424,0.61122175,59600.0,59599.0,1.195785]
[1724823428656,0.58613106,59600.0,59599.0,1.363573]
[1724823429303,0.53575568,59600.0,59599.0,1.362573]
[1724823429525,0.58614207,59600.0,59599.0,1.362573]
[1724823429737,0.53575568,59600.0,59599.0,1.361573]
[1724823429972,0.58614235,59600.0,59599.0,1.363573]
[1724823430167,0.53575568,59600.0,59599.0,1.363573]
[1724823430379,0.61122175,59600.0,59599.0,1.363573]
[1724823430580,0.61122175,59600.0,59599.0,1.361573]
[1724823430581,0.53575568,59600.0,59599.0,1.361573]
[1724823430989,0.56307215,59600.0,59599.0,1.361573]
[1724823431375,0.56507215,59600.0,59599.0,1.361573]
[1724823431806,0.64053822,59600.0,59599.0,1.361573]
[1724823432219,0.56507215,59600.0,59599.0,1.361573]
[1724823432891,0.56507215,59600.0,59599.0,1.651373]
[1724823433118,0.56507215,59600.0,59599.0,1.71597587]
[1724823433366,0.56507215,59600.0,59599.0,2.05155187]
[1724823433818,0.56207215,59600.0,59599.0,2.05155187]
[1724823434035,0.56307215,59600.0,59599.0,2.05155187]
[1724823434270,0.56307215,59600.0,59599.0,2.57112787]
[1724823434922,0.56207215,59600.0,59599.0,2.57112787]
[1724823435133,0.56307215,59600.0,59599.0,2.506525]
[1724823435566,0.56207215,59600.0,59599.0,2.506525]
[1724823435805,0.56207215,59600.0,59599.0,2.509525]
[1724823437445,0.56207215,59600.0,59599.0,2.513525]
[1724823437640,0.53578459,59600.0,59599.0,2.513525]
[1724823439289,0.53049447,59600.0,59599.0,2.513525]
[1724823439655,0.53049447,59600.0,59599.0,3.01765264]
[1724823439857,0.53049447,59600.0,59599.0,3.01365264]
[1724823440141,0.53049447,59600.0,59599.0,3.01565264]
[1724823440352,0.53049447,59600.0,59599.0,3.03865264]
[1724823440549,0.53049447,59600.0,59599.0,3.04265264]
[1724823441987,0.53049447,59600.0,59599.0,3.06783747]
[1724823444582,0.53049447,59600.0,59599.0,3.40341347]
[1724823445605,0.53049447,59600.0,59599.0,3.39841347]
[1724823446267,0.53049447,59600.0,59599.0,3.39441347]
[1724823446499,0.53049447,59600.0,59599.0,3.40841347]
[1724823446706,0.53049447,59600.0,59599.0,3.42241347]
[1724823446912,0.53049447,59600.0,59599.0,3.39441347]
[1724823447245,0.53049447,59600.0,59599.0,3.40841347]
[1724823447451,0.53049447,59600.0,59599.0,3.42241347]
[1724823447653,0.53049447,59600.0,59599.0,3.40841347]
[1724823447888,0.53049447,59600.0,59599.0,3.42241347]
[1724823448707,0.53049447,59600.0,59599.0,3.40841347]
[1724823448872,0.53049447,59600.0,59599.0,3.42241347]
[1724823450344,0.53049447,59600.0,59599.0,3.40136766]